fUSD/lending_fUSD_20250311
["ID","MTS","AMOUNT","RATE_DAILY","PERIOD"]
[355945309,1741726240036,-500.0,8.988e-05,2]
[355945310,1741726240047,-558.09,8.988e-05,2]
[355945311,1741726240056,-1480.71,8.988e-05,2]
[355945312,1741726240066,-1701.37,8.988e-05,2]
[355945313,1741726240075,-500.0,8.988e-05,2]
[355945314,1741726240086,-500.0,8.988e-05,2]
[355945315,1741726240095,-1065.2,8.988e-05,2]
[355945316,1741726240104,-500.0,8.988e-05,2]
[355945317,1741726240115,-500.0,8.988e-05,2]
[355945318,1741726240125,-1000.06,8.988e-05,2]
[355945319,1741726240134,-500.0,8.988e-05,2]
[355945320,1741726240143,-500.0,8.988e-05,2]
[355945321,1741726240154,-500.0,8.988e-05,2]
[355945322,1741726240163,-541.99,8.988e-05,2]
[355945323,1741726240172,-500.0,8.988e-05,2]
[355945324,1741726240182,-1332.24,8.988e-05,2]
[355945325,1741726240191,-554.36,8.988e-05,2]
[355945326,1741726240200,-500.0,8.988e-05,2]
[355945327,1741726240209,-1015.22,8.988e-05,2]
[355945328,1741726240218,-500.0,8.988e-05,2]
[355945329,1741726240227,-1202.84,8.988e-05,2]
[355945330,1741726240237,-1307.54,8.988e-05,2]
[355945331,1741726240246,-500.0,8.988e-05,2]
[355945332,1741726240255,-500.0,8.988e-05,2]
[355945333,1741726240264,-517.9,8.988e-05,2]
[355945334,1741726240274,-500.0,8.988e-05,2]
[355945335,1741726240283,-717.7,8.988e-05,2]
[355945336,1741726240293,-520.15,8.988e-05,2]
[355945337,1741726240302,-500.0,8.988e-05,2]
[355945338,1741726240312,-500.0,8.988e-05,2]
[355945339,1741726240321,-500.0,8.988e-05,2]
[355945340,1741726240331,-1346.51,8.988e-05,2]
[355945341,1741726240340,-500.0,8.988e-05,2]
[355945342,1741726240350,-500.0,8.988e-05,2]
[355945343,1741726240359,-500.0,8.988e-05,2]
[355945344,1741726240368,-1071.44,8.988e-05,2]
[355945345,1741726240377,-500.0,8.988e-05,2]
[355945346,1741726240386,-500.0,8.988e-05,2]
[355945347,1741726240395,-583.5,8.988e-05,2]
[355945348,1741726240405,-874.28,8.988e-05,2]
[355945349,1741726240415,-500.0,8.988e-05,2]
[355945350,1741726240424,-500.0,8.988e-05,2]
[355945351,1741726240432,-500.0,8.988e-05,2]
[355945352,1741726240442,-500.0,8.988e-05,2]
[355945353,1741726240451,-500.0,8.988e-05,2]
[355945354,1741726240460,-500.0,8.988e-05,2]
[355945355,1741726240469,-500.0,8.988e-05,2]
[355945356,1741726240478,-500.0,8.988e-05,2]
[355945357,1741726240488,-500.0,8.988e-05,2]
[355945358,1741726240498,-500.0,8.988e-05,2]
[355945359,1741726240508,-1115.81,8.988e-05,2]
[355945360,1741726240518,-500.0,8.988e-05,2]
[355945361,1741726240528,-1391.98,8.988e-05,2]
[355945362,1741726240538,-691.63,8.988e-05,2]
[355945363,1741726240548,-500.0,8.988e-05,2]
[355945364,1741726240557,-500.0,8.988e-05,2]
[355945365,1741726240567,-500.0,8.988e-05,2]
[355945366,1741726240576,-630.86,8.988e-05,2]
[355945367,1741726240585,-500.0,8.988e-05,2]
[355945368,1741726240594,-500.0,8.988e-05,2]
[355945369,1741726240603,-500.0,8.988e-05,2]
[355945370,1741726240612,-500.0,8.988e-05,2]
[355945371,1741726240621,-500.0,8.988e-05,2]
[355945372,1741726240631,-1120.52,8.988e-05,2]
[355945373,1741726240639,-500.0,8.988e-05,2]
[355945374,1741726240649,-500.0,8.988e-05,2]
[355945375,1741726240659,-500.0,8.988e-05,2]
[355945376,1741726240667,-500.0,8.988e-05,2]
[355945377,1741726240677,-2975.89,8.988e-05,2]
[355945378,1741726240686,-500.0,8.988e-05,2]
[355945379,1741726240695,-500.0,8.988e-05,2]
[355945380,1741726240705,-500.0,8.988e-05,2]
[355945381,1741726240714,-500.0,8.988e-05,2]
[355945382,1741726240724,-1274.14,8.988e-05,2]
[355945383,1741726240733,-1028.48,8.988e-05,2]
[355945384,1741726240743,-1292.03,8.988e-05,2]
[355945385,1741726240753,-499.99,8.988e-05,2]
[355945386,1741726240762,-500.0,8.988e-05,2]
[355945387,1741726240771,-500.0,8.988e-05,2]
[355945388,1741726240781,-1114.72,8.988e-05,2]
[355945389,1741726240790,-500.0,8.988e-05,2]
[355945390,1741726240799,-500.0,8.988e-05,2]
[355945391,1741726240808,-500.0,8.988e-05,2]
[355945392,1741726240817,-826.21,8.988e-05,2]
[355945393,1741726240826,-500.0,8.988e-05,2]
[355945394,1741726240835,-500.0,8.988e-05,2]
[355945395,1741726240845,-1446.93,8.988e-05,2]
[355945396,1741726240854,-299.99,8.988e-05,2]
[355945397,1741726240863,-6179.54,8.988e-05,2]
[355945398,1741726240873,-500.0,8.988e-05,2]
[355945399,1741726240882,-500.0,8.988e-05,2]
[355945400,1741726240891,-500.0,8.988e-05,2]
[355945401,1741726240901,-551.6986716,8.988e-05,2]
[355945402,1741726240911,-1138.65,8.988e-05,2]
[355945403,1741726240920,-757.45,8.988e-05,2]
[355945404,1741726240929,-500.0,8.988e-05,2]
[355945405,1741726240939,-1048.65,8.988e-05,2]
[355945406,1741726240948,-485.46143853,8.988e-05,2]
[355945407,1741726240958,-500.0,8.988e-05,2]
[355945408,1741726240968,-870.57,8.988e-05,2]
[355945409,1741726240976,-500.0,8.988e-05,2]
[355945410,1741726240986,-500.0,8.988e-05,2]
[355945411,1741726240995,-500.0,8.988e-05,2]
[355945412,1741726241003,-500.0,8.988e-05,2]
[355945413,1741726241013,-521.95,8.988e-05,2]
[355945414,1741726241022,-500.0,8.988e-05,2]
[355945415,1741726241031,-1340.43,8.988e-05,2]
[355945416,1741726241044,-1473.4,8.988e-05,2]
[355945417,1741726241053,-500.0,8.988e-05,2]
[355945418,1741726241062,-500.0,8.988e-05,2]
[355945419,1741726241072,-500.0,8.988e-05,2]
[355945420,1741726241082,-500.0,8.988e-05,2]
[355945421,1741726241091,-500.0,8.988e-05,2]
[355945422,1741726241100,-500.0,8.988e-05,2]
[355945423,1741726241110,-500.0,8.988e-05,2]
[355945424,1741726241120,-500.0,8.988e-05,2]
[355945425,1741726241129,-500.0,8.988e-05,2]
[355945426,1741726241138,-901.45,8.988e-05,2]
[355945427,1741726241147,-646.57,8.988e-05,2]
[355945428,1741726241156,-500.0,8.988e-05,2]
[355945429,1741726241165,-500.0,8.988e-05,2]
[355945430,1741726241174,-500.0,8.988e-05,2]
[355945431,1741726241184,-500.0,8.988e-05,2]
[355945432,1741726241194,-500.0,8.988e-05,2]
[355945433,1741726241203,-500.0,8.988e-05,2]
[355945434,1741726241212,-706.75,8.988e-05,2]
[355945435,1741726241221,-576.5,8.988e-05,2]
[355945436,1741726241230,-500.0,8.988e-05,2]
[355945437,1741726241239,-500.0,8.988e-05,2]
[355945438,1741726241248,-500.0,8.988e-05,2]
[355945439,1741726241257,-500.0,8.988e-05,2]
[355945440,1741726241268,-503.12,8.988e-05,2]
[355945441,1741726241277,-1365.23,8.988e-05,2]
[355945442,1741726241286,-500.0,8.988e-05,2]
[355945443,1741726241295,-1103.16,8.988e-05,2]
[355945444,1741726241304,-500.0,8.988e-05,2]
[355945445,1741726241313,-1348.35,8.988e-05,2]
[355945446,1741726241322,-500.0,8.988e-05,2]
[355945447,1741726241331,-500.0,8.988e-05,2]
[355945448,1741726241340,-653.76,8.988e-05,2]
[355945449,1741726241349,-500.0,8.988e-05,2]
[355945450,1741726241358,-500.0,8.988e-05,2]
[355945451,1741726241367,-500.0,8.988e-05,2]
[355945452,1741726241377,-921.6,8.988e-05,2]
[355945453,1741726241385,-1681.35,8.988e-05,2]
[355945454,1741726241395,-613.1472735,8.988e-05,2]
[355945455,1741726241405,-309.40267416,8.988e-05,2]
[355945456,1741726241414,-694.0,8.988e-05,2]
[355945457,1741726241423,-500.0,8.988e-05,2]
[355945458,1741726241433,-500.0,8.988e-05,2]
[355945459,1741726241441,-500.0,8.988e-05,2]
[355945460,1741726241450,-1053.63,8.988e-05,2]
[355945461,1741726241460,-500.0,8.988e-05,2]
[355945462,1741726241468,-1775.97,8.988e-05,2]
[355945463,1741726241477,-500.0,8.988e-05,2]
[355945464,1741726241487,-500.0,8.988e-05,2]
[355945465,1741726241496,-1274.87,8.988e-05,2]
[355945466,1741726241505,-500.0,8.988e-05,2]
[355945467,1741726241514,-500.0,8.988e-05,2]
[355945468,1741726241523,-905.29,8.988e-05,2]
[355945469,1741726241532,-500.0,8.988e-05,2]
[355945470,1741726241542,-500.0,8.988e-05,2]
[355945471,1741726241551,-745.71,8.988e-05,2]
[355945472,1741726241560,-757.47,8.988e-05,2]
[355945473,1741726241569,-1323.34,8.988e-05,2]
[355945474,1741726241579,-687.76,8.988e-05,2]
[355945475,1741726241588,-500.0,8.988e-05,2]
[355945476,1741726241597,-539.95,8.988e-05,2]
[355945477,1741726241606,-500.0,8.988e-05,2]
[355945478,1741726241615,-788.45,8.988e-05,2]
[355945479,1741726241624,-1399.07,8.988e-05,2]
[355945480,1741726241633,-500.0,8.988e-05,2]
[355945481,1741726241642,-569.3,8.988e-05,2]
[355945482,1741726241653,-500.0,8.988e-05,2]
[355945483,1741726241662,-500.0,8.988e-05,2]
[355945484,1741726241672,-920.64,8.988e-05,2]
[355945485,1741726241682,-500.0,8.988e-05,2]
[355945486,1741726241692,-500.0,8.988e-05,2]
[355945487,1741726241701,-500.0,8.988e-05,2]
[355945488,1741726241710,-732.92,8.988e-05,2]
[355945489,1741726241719,-2226.96,8.988e-05,2]
[355945490,1741726241729,-632.11,8.988e-05,2]
[355945491,1741726241738,-562.72,8.988e-05,2]
[355945492,1741726241747,-500.0,8.988e-05,2]
[355945493,1741726241756,-514.06,8.988e-05,2]
[355945494,1741726241766,-500.0,8.988e-05,2]
[355945495,1741726241775,-500.0,8.988e-05,2]
[355945496,1741726241784,-660.58,8.988e-05,2]
[355945497,1741726241793,-500.0,8.988e-05,2]
[355945498,1741726241803,-500.0,8.989e-05,2]
[355945499,1741726241812,-500.0,8.989e-05,2]
[355945500,1741726241822,-736.5,8.989e-05,2]
[355945501,1741726241831,-1360.15,8.989e-05,2]
[355945502,1741726241841,-500.0,8.989e-05,2]
[355945503,1741726241850,-588.4,8.989e-05,2]
[355945504,1741726241860,-500.0,8.989e-05,2]
[355945505,1741726241869,-664.58,8.989e-05,2]
[355945506,1741726241879,-500.0,8.989e-05,2]
[355945507,1741726241888,-500.0,8.989e-05,2]
[355945508,1741726241898,-500.0,8.989e-05,2]
[355945509,1741726241909,-500.0,8.989e-05,2]
[355945510,1741726241918,-500.0,8.989e-05,2]
[355945511,1741726241927,-500.0,8.989e-05,2]
[355945512,1741726241937,-500.0,8.989e-05,2]
[355945513,1741726241947,-969.36,8.989e-05,2]
[355945514,1741726241957,-500.0,8.989e-05,2]
[355945515,1741726241967,-1036.97,8.989e-05,2]
[355945516,1741726241977,-500.0,8.989e-05,2]
[355945517,1741726241987,-500.0,8.989e-05,2]
[355945518,1741726241997,-831.28,8.989e-05,2]
[355945519,1741726242006,-1157.12,8.989e-05,2]
[355945520,1741726242016,-500.0,8.989e-05,2]
[355945521,1741726242025,-500.0,8.989e-05,2]
[355945522,1741726242036,-500.0,8.989e-05,2]
[355945523,1741726242047,-500.0,8.989e-05,2]
[355945524,1741726242056,-500.0,8.989e-05,2]
[355945525,1741726242065,-500.0,8.989e-05,2]
[355945526,1741726242075,-500.0,8.989e-05,2]
[355945527,1741726242084,-500.0,8.989e-05,2]
[355945528,1741726242093,-500.0,8.989e-05,2]
[355945529,1741726242102,-500.0,8.989e-05,2]
[355945530,1741726242113,-1310.87,8.989e-05,2]
[355945531,1741726242123,-500.0,8.989e-05,2]
[355945532,1741726242133,-500.0,8.989e-05,2]
[355945533,1741726242142,-500.0,8.989e-05,2]
[355945534,1741726242152,-500.0,8.989e-05,2]
[355945539,1741726242389,-500.0,8.989e-05,2]
[355945540,1741726242400,-500.0,8.989e-05,2]
[355945541,1741726242414,-500.0,8.989e-05,2]
[355945542,1741726242424,-1268.41,8.989e-05,2]
[355945543,1741726242433,-500.0,8.989e-05,2]
[355945544,1741726242443,-500.0,8.989e-05,2]
[355945545,1741726242452,-500.0,8.989e-05,2]
[355945546,1741726242462,-500.0,8.989e-05,2]
[355945547,1741726242472,-663.17,8.989e-05,2]
[355945548,1741726242481,-500.0,8.989e-05,2]
[355945549,1741726242491,-500.0,8.989e-05,2]
[355945550,1741726242500,-500.0,8.989e-05,2]
[355945551,1741726242510,-500.0,8.989e-05,2]
[355945552,1741726242519,-500.0,8.989e-05,2]
[355945554,1741726242529,-500.0,8.989e-05,2]
[355945555,1741726242538,-522.33,8.989e-05,2]
[355945557,1741726242547,-500.0,8.989e-05,2]
[355945558,1741726242557,-1612.95,8.989e-05,2]
[355945559,1741726242566,-500.0,8.989e-05,2]
[355945560,1741726242577,-625.19,8.989e-05,2]
[355945561,1741726242586,-931.52,8.989e-05,2]
[355945562,1741726242596,-4679.14,8.989e-05,2]
[355945563,1741726242605,-500.0,8.989e-05,2]
[355945564,1741726242615,-500.0,8.989e-05,2]
[355945565,1741726242624,-500.0,8.989e-05,2]
[355945566,1741726242634,-849.97,8.989e-05,2]
[355945567,1741726242643,-568.92,8.989e-05,2]
[355945568,1741726242654,-500.0,8.989e-05,2]
[355945569,1741726242663,-500.0,8.989e-05,2]
[355945570,1741726242673,-500.0,8.989e-05,2]
[355945571,1741726242682,-514.12,8.989e-05,2]
[355945572,1741726242691,-500.0,8.989e-05,2]
[355945573,1741726242701,-1098.28,8.989e-05,2]
[355945574,1741726242710,-500.0,8.989e-05,2]
[355945575,1741726242720,-500.0,8.989e-05,2]
[355945576,1741726242729,-1000.78,8.989e-05,2]
[355945577,1741726242739,-500.0,8.989e-05,2]
[355945578,1741726242748,-500.0,8.989e-05,2]
[355945579,1741726242759,-500.0,8.989e-05,2]
[355945580,1741726242768,-1517.48,8.989e-05,2]
[355945581,1741726242777,-500.0,8.989e-05,2]
[355945582,1741726242787,-665.18,8.989e-05,2]
[355945583,1741726242797,-1008.36,8.989e-05,2]
[355945584,1741726242806,-1215.69,8.989e-05,2]
[355945585,1741726242815,-548.81,8.989e-05,2]
[355945586,1741726242825,-154.32733738,8.989e-05,2]
[355945587,1741726242835,-500.0,8.989e-05,2]
[355945589,1741726242844,-1000.0,8.989e-05,2]
[355945590,1741726242854,-500.0,8.989e-05,2]
[355945591,1741726242864,-1315.39,8.989e-05,2]
[355945592,1741726242873,-1438.94,8.989e-05,2]
[355945593,1741726242883,-500.0,8.989e-05,2]
[355945594,1741726242892,-500.0,8.989e-05,2]
[355945595,1741726242902,-1516.88,8.989e-05,2]
[355945597,1741726242913,-1054.16,8.989e-05,2]
[355945599,1741726242923,-500.0,8.989e-05,2]
[355945601,1741726242933,-578.9,8.989e-05,2]
[355945602,1741726242942,-500.0,8.989e-05,2]
[355945603,1741726242952,-1438.75,8.989e-05,2]
[355945604,1741726242962,-500.0,8.989e-05,2]
[355945605,1741726242971,-500.0,8.989e-05,2]
[355945606,1741726242981,-500.0,8.989e-05,2]
[355945607,1741726242991,-1840.22,8.989e-05,2]
[355945608,1741726243001,-500.0,8.989e-05,2]
[355945609,1741726243010,-500.0,8.989e-05,2]
[355945610,1741726243020,-500.0,8.989e-05,2]
[355945611,1741726243029,-500.0,8.989e-05,2]
[355945612,1741726243043,-500.0,8.989e-05,2]
[355945613,1741726243053,-500.0,8.989e-05,2]
[355945614,1741726243062,-1174.69,8.989e-05,2]
[355945615,1741726243072,-1275.77,8.989e-05,2]
[355945616,1741726243083,-500.0,8.989e-05,2]
[355945617,1741726243092,-500.0,8.989e-05,2]
[355945618,1741726243102,-405.50745949,8.989e-05,2]
[355945619,1741726243111,-500.0,8.989e-05,2]
[355945620,1741726243122,-1453.18,8.989e-05,2]
[355945621,1741726243132,-500.0,8.989e-05,2]
[355945622,1741726243141,-1092.68,8.989e-05,2]
[355945623,1741726243150,-500.0,8.989e-05,2]
[355945624,1741726243162,-500.0,8.989e-05,2]
[355945625,1741726243171,-808.29,8.989e-05,2]
[355945626,1741726243181,-1219.78,8.989e-05,2]
[355945627,1741726243191,-1356.56,8.989e-05,2]
[355945628,1741726243201,-652.99,8.989e-05,2]
[355945629,1741726243211,-500.0,8.989e-05,2]
[355945630,1741726243220,-500.0,8.989e-05,2]
[355945631,1741726243230,-1003.8,8.989e-05,2]
[355945632,1741726243239,-500.0,8.989e-05,2]
[355945633,1741726243249,-906.77,8.989e-05,2]
[355945634,1741726243258,-1074.41,8.989e-05,2]
[355945635,1741726243268,-500.0,8.989e-05,2]
[355945636,1741726243277,-721.05,8.989e-05,2]
[355945637,1741726243287,-500.0,8.989e-05,2]
[355945638,1741726243296,-500.0,8.989e-05,2]
[355945639,1741726243306,-500.0,8.989e-05,2]
[355945640,1741726243315,-1115.65,8.989e-05,2]
[355945641,1741726243325,-500.0,8.989e-05,2]
[355945642,1741726243334,-500.0,8.989e-05,2]
[355945643,1741726243343,-500.0,8.989e-05,2]
[355945644,1741726243353,-500.0,8.989e-05,2]
[355945645,1741726243362,-500.0,8.989e-05,2]
[355945646,1741726243372,-500.0,8.989e-05,2]
[355945647,1741726243381,-593.25061338,8.989e-05,2]
[355945648,1741726243390,-500.0,8.989e-05,2]
[355945649,1741726243399,-611.59,8.989e-05,2]
[355945650,1741726243409,-500.0,8.989e-05,2]
[355945651,1741726243418,-500.0,8.989e-05,2]
[355945652,1741726243427,-725.03,8.989e-05,2]
[355945653,1741726243436,-1470.22,8.989e-05,2]
[355945654,1741726243446,-500.0,8.989e-05,2]
[355945655,1741726243455,-500.0,8.989e-05,2]
[355945656,1741726243464,-706.69,8.989e-05,2]
[355945657,1741726243473,-947.96,8.989e-05,2]
[355945658,1741726243482,-1272.19,8.989e-05,2]
[355945659,1741726243491,-1234.27,8.989e-05,2]
[355945660,1741726243501,-557.06,8.989e-05,2]
[355945661,1741726243510,-901.77,8.989e-05,2]
[355945662,1741726243519,-1494.34,8.989e-05,2]
[355945663,1741726243528,-500.0,8.989e-05,2]
[355945664,1741726243538,-500.0,8.989e-05,2]
[355945665,1741726243547,-669.35,8.989e-05,2]
[355945666,1741726243556,-889.23,8.989e-05,2]
[355945667,1741726243565,-500.0,8.989e-05,2]
[355945668,1741726243574,-500.0,8.989e-05,2]
[355945669,1741726243583,-500.0,8.989e-05,2]
[355945670,1741726243593,-500.0,8.989e-05,2]
[355945671,1741726243602,-771.36,8.989e-05,2]
[355945672,1741726243611,-500.0,8.989e-05,2]
[355945673,1741726243621,-582.75,8.989e-05,2]
[355945674,1741726243630,-916.67,8.989e-05,2]
[355945675,1741726243639,-1311.93,8.989e-05,2]
[355945676,1741726243648,-500.0,8.989e-05,2]
[355945677,1741726243658,-500.0,8.989e-05,2]
[355945678,1741726243667,-1578.66,8.989e-05,2]
[355945679,1741726243677,-1330.5,8.989e-05,2]
[355945680,1741726243686,-500.0,8.989e-05,2]
[355945681,1741726243695,-500.0,8.989e-05,2]
[355945682,1741726243704,-500.0,8.989e-05,2]
[355945683,1741726243714,-500.0,8.989e-05,2]
[355945684,1741726243725,-757.41,8.989e-05,2]
[355945685,1741726243734,-500.0,8.989e-05,2]
[355945686,1741726243743,-623.07,8.989e-05,2]
[355945687,1741726243752,-500.0,8.989e-05,2]
[355945688,1741726243762,-1594.98,8.989e-05,2]
[355945689,1741726243771,-500.0,8.989e-05,2]
[355945690,1741726243780,-500.0,8.989e-05,2]
[355945691,1741726243789,-1647.36,8.989e-05,2]
[355945692,1741726243798,-500.0,8.989e-05,2]
[355945693,1741726243807,-326.36647341,8.989e-05,2]
[355945694,1741726243816,-500.0,8.989e-05,7]
[355945695,1741726243825,-902.26,8.989e-05,2]
[355945696,1741726243835,-500.0,8.989e-05,2]
[355945697,1741726243845,-1112.3,8.989e-05,2]
[355945698,1741726243855,-550.0,9e-05,2]
[355945699,1741726243864,-800.0,9e-05,3]
[355945700,1741726243874,-156.87,9.001e-05,2]
[355945701,1741726243883,-499.98,9.1e-05,2]
[355945702,1741726243893,-1127.5458,9.1e-05,2]
[355945703,1741726243902,-500.0,9.199e-05,2]
[355945704,1741726243912,-500.0,9.199e-05,2]
[355945705,1741726243921,-789.31,9.199e-05,2]
[355945706,1741726243931,-500.0,9.199e-05,2]
[355945707,1741726243940,-2184.85,9.199e-05,2]
[355945708,1741726243949,-2019.43,9.199e-05,2]
[355945709,1741726243958,-979.85,9.199e-05,2]
[355945710,1741726243968,-1194.86,9.199e-05,2]
[355945711,1741726243977,-1149.75,9.199e-05,2]
[355945712,1741726243987,-584.69,9.199e-05,2]
[355945713,1741726243995,-500.0,9.199e-05,2]
[355945714,1741726244004,-500.0,9.199e-05,2]
[355945715,1741726244014,-795.68,9.199e-05,2]
[355945716,1741726244023,-1886.95,9.199e-05,2]
[355945717,1741726244032,-746.67,9.199e-05,2]
[355945718,1741726244046,-1087.08,9.199e-05,2]
[355945719,1741726244055,-500.0,9.199e-05,2]
[355945720,1741726244064,-612.48,9.199e-05,2]
[355945721,1741726244074,-500.0,9.199e-05,2]
[355945722,1741726244083,-500.0,9.199e-05,2]
[355945723,1741726244092,-52247.1319,9.2e-05,2]
[355945724,1741726244102,-1000.0,9.213e-05,2]
[355945725,1741726244111,-1000.0,9.213e-05,2]
[355945726,1741726244121,-1000.0,9.213e-05,2]
[355945727,1741726244131,-1000.0,9.213e-05,2]
[355945728,1741726244140,-1015.0,9.213e-05,2]
[355945729,1741726244148,-1278.0,9.213e-05,2]
[355945730,1741726244158,-2033.0,9.213e-05,2]
[355945731,1741726244168,-786.0,9.213e-05,2]
[355945732,1741726244177,-907.0,9.213e-05,2]
[355945733,1741726244187,-1428.0,9.213e-05,2]
[355945734,1741726244197,-1270.0,9.213e-05,2]
[355945735,1741726244206,-546.595,9.213e-05,2]
[355945736,1741726244215,-4077.0,9.213e-05,2]
[355945737,1741726244225,-233.0,9.213e-05,2]
[355945738,1741726244234,-3932.0,9.213e-05,2]
[355945739,1741726244243,-150.0,9.213e-05,2]
[355945740,1741726244253,-1012.0,9.213e-05,2]
[355945741,1741726244262,-150.0,9.213e-05,2]
[355945742,1741726244272,-150.0,9.213e-05,2]
[355945743,1741726244281,-410.68379477,9.243e-05,2]
[355945744,1741726244290,-500.0,9.261e-05,2]
[355945745,1741726244300,-909.32,9.261e-05,2]
[355945746,1741726244309,-500.0,9.261e-05,2]
[355945747,1741726244318,-723.72,9.261e-05,2]
[355945748,1741726244327,-1073.16,9.261e-05,2]
[355945749,1741726244337,-658.31,9.261e-05,2]
[355945750,1741726244346,-1234.41,9.261e-05,2]
[355945751,1741726244355,-1350.93,9.261e-05,2]
[355945752,1741726244364,-750.92,9.261e-05,2]
[355945753,1741726244374,-500.0,9.261e-05,2]
[355945754,1741726244383,-620.42,9.261e-05,2]
[355945755,1741726244392,-1079.25,9.261e-05,2]
[355945756,1741726244402,-632.84,9.262e-05,2]
[355945757,1741726244412,-500.0,9.262e-05,2]
[355945758,1741726244422,-500.0,9.262e-05,2]
[355945759,1741726244431,-1104.89,9.262e-05,2]
[355945760,1741726244440,-870.48,9.262e-05,2]
[355945761,1741726244450,-500.0,9.262e-05,2]
[355945762,1741726244458,-500.0,9.262e-05,2]
[355945763,1741726244467,-500.0,9.262e-05,2]
[355945764,1741726244477,-500.0,9.262e-05,2]
[355945765,1741726244486,-500.0,9.262e-05,2]
[355945766,1741726244495,-500.0,9.262e-05,2]
[355945767,1741726244505,-500.0,9.262e-05,2]
[355945768,1741726244514,-500.0,9.262e-05,2]
[355945769,1741726244523,-500.0,9.262e-05,2]
[355945770,1741726244532,-500.47,9.262e-05,2]
[355945771,1741726244542,-500.0,9.262e-05,2]
[355945772,1741726244551,-236.61089794,9.262e-05,2]
[355945773,1741726244560,-632.71717196,9.262e-05,2]
[355945774,1741726244569,-500.0,9.262e-05,2]
[355945775,1741726244578,-500.0,9.262e-05,2]
[355945776,1741726244588,-500.0,9.262e-05,2]
[355945777,1741726244597,-500.0,9.262e-05,2]
[355945778,1741726244606,-500.0,9.262e-05,2]
[355945779,1741726244615,-500.0,9.262e-05,2]
[355945780,1741726244625,-1020.43,9.262e-05,2]
[355945781,1741726244634,-1341.06,9.262e-05,2]
[355945782,1741726244643,-500.0,9.262e-05,2]
[355945783,1741726244652,-500.0,9.262e-05,2]
[355945784,1741726244663,-500.0,9.262e-05,2]
[355945785,1741726244672,-500.0,9.262e-05,2]
[355945786,1741726244753,-527.83,9.262e-05,2]
[355945787,1741726244762,-595.3,9.262e-05,2]
[355945788,1741726244771,-500.0,9.262e-05,2]
[355945789,1741726244780,-702.25,9.262e-05,2]
[355945790,1741726244789,-500.0,9.262e-05,2]
[355945791,1741726244798,-984.6,9.262e-05,2]
[355945792,1741726244807,-500.0,9.262e-05,2]
[355945793,1741726244817,-871.18,9.262e-05,2]
[355945794,1741726244826,-658.15,9.262e-05,2]
[355945795,1741726244835,-500.0,9.262e-05,2]
[355945796,1741726244845,-500.0,9.262e-05,2]
[355945797,1741726244854,-867.45,9.262e-05,2]
[355945798,1741726244863,-500.0,9.262e-05,2]
[355945799,1741726244873,-500.0,9.262e-05,2]
[355945800,1741726244882,-1479.56,9.262e-05,2]
[355945801,1741726244892,-933.42,9.262e-05,2]
[355945802,1741726244901,-500.0,9.262e-05,2]
[355945803,1741726244914,-500.0,9.262e-05,2]
[355945804,1741726244924,-500.0,9.262e-05,2]
[355945805,1741726244933,-581.9126915,9.262e-05,2]
[355945806,1741726244942,-807.01,9.262e-05,2]
[355945807,1741726244951,-500.0,9.262e-05,2]
[355945808,1741726244961,-1186.25,9.262e-05,2]
[355945809,1741726244971,-500.0,9.262e-05,2]
[355945810,1741726244980,-500.0,9.262e-05,2]
[355945811,1741726244989,-500.0,9.262e-05,2]
[355945812,1741726244999,-1239.48,9.262e-05,2]
[355945813,1741726245008,-500.0,9.262e-05,2]
[355945814,1741726245018,-880.84,9.262e-05,2]
[355945815,1741726245027,-642.4,9.262e-05,2]
[355945816,1741726245038,-1394.62,9.262e-05,2]
[355945817,1741726245049,-500.0,9.262e-05,2]
[355945818,1741726245058,-633.08,9.262e-05,2]